fUST/lending_fUST_20250910
["ID","MTS","AMOUNT","RATE_DAILY","PERIOD"]
[384681615,1757509835118,-480.0,0.00019235,2]
[384681616,1757509835128,-714.02,0.00019398,2]
[384681617,1757509835138,-480.0,0.00019398,2]
[384681618,1757509835147,-480.0,0.00019399,2]
[384681619,1757509835158,-2631.86,0.00019399,2]
[384681620,1757509835167,-480.0,0.00019399,2]
[384681621,1757509835176,-480.0,0.00019509,2]
[384681622,1757509835187,-760.0,0.00019659,2]
[384681623,1757509835197,-663.32884542,0.00019667,2]
[384681624,1757509835207,-714.02,0.00019672,2]
[384681625,1757509835216,-480.0,0.00019672,2]
[384681626,1757509835225,-480.0,0.00019673,2]
[384681627,1757509835234,-2631.86,0.00019673,2]
[384681628,1757509835244,-480.0,0.00019673,2]
[384681629,1757509835253,-570.0,0.00019682,2]
[384681630,1757509835263,-151.0,0.00019722,2]
[384681631,1757509835273,-156.292349,0.00019748,2]
[384681632,1757509835283,-480.0,0.00019783,2]
[384681633,1757509835292,-11132.5829613,0.000199,2]
[384681634,1757509835302,-714.02,0.00019946,2]
[384681635,1757509835311,-480.0,0.00019946,2]
[384681636,1757509835321,-480.0,0.00019947,2]
[384681637,1757509835331,-2631.86,0.00019947,2]
[384681638,1757509835341,-480.0,0.00019947,2]
[384681639,1757509835350,-480.0,0.00020057,2]
[384681640,1757509835360,-154.383,0.00020092,2]
[384681641,1757509835369,-6662.93675938,0.00020187,2]
[384681642,1757509835379,-393.576915,0.00020187,2]
[384681643,1757509835389,-860.0,0.00020207,2]
[384681644,1757509835398,-714.02,0.0002022,2]
[384681645,1757509835408,-480.0,0.0002022,2]
[384681646,1757509835417,-178.06741892,0.00020221,2]
[384681647,1757509835427,-2631.86,0.00020221,2]
[384681648,1757509835438,-480.0,0.00020221,2]
[384681649,1757509835447,-11132.58296129,0.00020327,2]
[384681650,1757509835456,-480.0,0.00020331,2]
[384681651,1757509835466,-151.0,0.00020476,2]
[384681652,1757509835476,-714.02,0.00020494,2]
[384681653,1757509835485,-480.0,0.00020494,2]
[384681654,1757509835494,-2631.86,0.00020495,2]
[384681655,1757509835504,-342.57150064,0.00020495,2]
[384681656,1757509835513,-15340.00145398,0.00020539,2]
[384681657,1757509835523,-250.0,0.00020539,2]
[384681658,1757509835532,-250.0,0.00020539,2]
[384681659,1757509835542,-2030.296672,0.00020539,2]
[384681660,1757509835551,-250.0,0.00020539,2]
[384681661,1757509835560,-250.0,0.00020539,2]
[384681662,1757509835570,-234.19352325,0.00020539,2]
[384681663,1757509835579,-151.0,0.00020539,2]
[384681664,1757509835588,-187.8704837,0.00020539,2]
[384681665,1757509835598,-151.0,0.00020539,2]
[384681666,1757509835607,-151.0,0.00020539,2]
[384681667,1757509835617,-151.83333832,0.00020539,2]
[384681668,1757509835627,-151.0,0.00020539,2]
[384681669,1757509835636,-157.0,0.00020557,2]
[384681670,1757509835646,-500.0,0.00020557,2]
[384681671,1757509835655,-157.0,0.00020557,2]
[384681672,1757509835665,-2105.41764886,0.00020594,2]
[384681673,1757509835675,-480.0,0.00020605,2]
[384681674,1757509835686,-233.80419966,0.00020649,2]
[384681675,1757509835696,-11132.58296129,0.00020755,2]
[384681676,1757509835705,-720.0,0.00020755,2]
[384681677,1757509835715,-714.02,0.00020768,2]
[384681678,1757509835725,-194.34091983,0.00020768,2]
[384681679,1757509835735,-2631.86,0.00020769,2]
[384681680,1757509835744,-998.23662206,0.00020812,2]
[384681681,1757509835754,-157.0,0.00020831,2]
[384681682,1757509835763,-500.0,0.00020831,2]
[384681683,1757509835774,-267.33463135,0.00020831,2]
[384681684,1757509835784,-480.0,0.00020879,2]
[384681685,1757509835793,-764.56224014,0.00020918,2]
[384681686,1757509835802,-500.0,0.00020967,2]
[384681687,1757509835812,-500.87580389,0.00020967,2]
[384681688,1757509835821,-500.0,0.00020967,2]
[384681689,1757509835830,-500.0,0.00020967,2]
[384681690,1757509835840,-500.0,0.00020967,2]
[384681691,1757509835849,-500.0,0.00020967,2]
[384681692,1757509835858,-180.04868535,0.00020967,2]
[384681693,1757509835867,-230.35488053,0.00020967,2]
[384681694,1757509835876,-295.999999,0.00020982,2]
[384681695,1757509835886,-3000.0,0.00021,2]
[384681696,1757509835895,-3000.0,0.0002101,2]
[384681697,1757509835905,-3000.0,0.0002102,2]
[384681698,1757509835914,-416.07470665,0.00021027,2]
[384681699,1757509835924,-500.0,0.00021027,2]
[384681700,1757509835934,-450.21276711,0.00021027,2]
[384681701,1757509835943,-500.0,0.00021027,2]
[384681702,1757509835953,-3000.0,0.0002103,2]
[384681703,1757509835962,-3000.0,0.0002104,2]
[384681704,1757509835972,-714.02,0.00021042,2]
[384681705,1757509835981,-2631.86,0.00021043,2]
[384681706,1757509835991,-3000.0,0.0002105,2]
[384681707,1757509836000,-3000.0,0.0002106,2]
[384681708,1757509836009,-3000.0,0.0002107,2]
[384681709,1757509836019,-2102.56,0.00021072,2]
[384681710,1757509836028,-3000.0,0.0002108,2]
[384681711,1757509836038,-3000.0,0.0002109,2]
[384681712,1757509836047,-3000.0,0.000211,2]
[384681713,1757509836057,-186.85853806,0.00021105,2]
[384681714,1757509836066,-500.0,0.00021105,2]
[384681715,1757509836076,-3000.0,0.0002111,2]
[384681716,1757509836085,-3000.0,0.0002112,2]
[384681717,1757509836094,-3000.0,0.0002113,2]
[384681718,1757509836105,-3000.0,0.0002114,2]
[384681719,1757509836116,-1000.0,0.00021142,20]
[384681720,1757509836125,-3000.0,0.0002115,2]
[384681721,1757509836134,-480.0,0.00021153,2]
[384681722,1757509836144,-3000.0,0.0002116,2]
[384681723,1757509836154,-3000.0,0.0002117,2]
[384681724,1757509836164,-3516.964397,0.0002118,2]
[384681725,1757509836173,-11132.58296129,0.00021182,2]
[384681726,1757509836185,-151.0,0.0002123,2]
[384681727,1757509836195,-500.0,0.0002125,2]
[384681728,1757509836204,-501.19101178,0.00021267,2]
[384681729,1757509836214,-500.0,0.00021267,2]
[384681730,1757509836224,-500.0,0.00021267,2]
[384681731,1757509836233,-501.22073084,0.00021267,2]
[384681732,1757509836243,-500.0,0.00021316,2]
[384681733,1757509836252,-500.0,0.00021316,2]
[384681734,1757509836261,-714.02,0.00021316,2]
[384681735,1757509836270,-2631.86,0.00021317,2]
[384681736,1757509836279,-555.3552302,0.00021337,2]
[384681737,1757509836288,-500.0,0.00021373,2]
[384681738,1757509836298,-500.0,0.00021379,2]
[384681739,1757509836307,-3000.0,0.0002139,2]
[384681740,1757509836317,-500.69575271,0.00021403,2]
[384681741,1757509836326,-500.0,0.00021403,2]
[384681742,1757509836335,-500.0,0.00021403,2]
[384681743,1757509836345,-155.74947961,0.00021427,2]
[384681744,1757509836355,-156.292349,0.00021495,2]
[384681745,1757509836364,-1000.0,0.00021515,2]
[384681746,1757509836373,-1000.0,0.00021515,2]
[384681747,1757509836383,-1000.0,0.00021515,2]
[384681748,1757509836392,-1000.0,0.00021515,2]
[384681749,1757509836401,-1000.0,0.00021515,2]
[384681750,1757509836410,-1000.0,0.00021575,2]
[384681751,1757509836420,-714.02,0.0002159,2]
[384681752,1757509836429,-2631.86,0.00021591,2]
[384681753,1757509836439,-11132.58296129,0.0002161,2]
[384681754,1757509836448,-160.0,0.00021644,3]
[384681755,1757509836458,-500.0,0.00021653,2]
[384681756,1757509836467,-2500.0,0.00021712,2]
[384681757,1757509836476,-1000.0,0.00021798,2]
[384681758,1757509836485,-1113.24142378,0.00021815,2]
[384681759,1757509836495,-1000.75422995,0.00021815,2]
[384681760,1757509836504,-28363.63745265,0.00021818,3]
[384681761,1757509836513,-1000.0,0.00021864,2]
[384681762,1757509836523,-1000.0,0.00021864,2]
[384681763,1757509836532,-714.2081109,0.00021864,2]
[384681764,1757509836542,-2631.90989139,0.00021865,2]
[384681765,1757509836551,-203.30414021,0.000219,3]
[384681766,1757509836562,-153.0,0.00021918,2]
[384681767,1757509836571,-153.0,0.00021918,2]
[384681768,1757509836581,-358.510387,0.00021918,2]
[384681769,1757509836591,-151.0,0.00021918,7]
[384681770,1757509836601,-151.0,0.00021918,7]
[384681771,1757509836610,-151.0,0.00021918,7]
[384681772,1757509836619,-151.0,0.00021918,7]
[384681773,1757509836629,-151.0,0.00021918,7]
[384681774,1757509836638,-151.0,0.00021918,7]
[384681775,1757509836647,-151.0,0.00021918,7]
[384681776,1757509836657,-151.0,0.00021918,7]
[384681777,1757509836666,-184.787136,0.00021918,7]
[384681778,1757509836684,-151.0,0.00021918,7]
[384681779,1757509836693,-151.0,0.00021918,7]
[384681780,1757509836702,-214.747912,0.00021918,7]
[384681781,1757509836712,-151.0,0.00021919,7]
[384681782,1757509836722,-151.0,0.00021919,7]
[384681783,1757509836731,-500.71844632,0.00021921,2]
[384681784,1757509836742,-151.0,0.00021921,7]
[384681785,1757509836752,-151.0,0.00021921,7]
[384681786,1757509836761,-151.0,0.00021921,2]
[384681787,1757509836770,-151.0,0.00021921,7]
[384681788,1757509836780,-269.999847,0.00021921,7]
[384681789,1757509836789,-269.999847,0.00021921,7]
[384681790,1757509836799,-269.999847,0.00021921,7]
[384681791,1757509836809,-269.999847,0.00021921,7]
[384681792,1757509836818,-500.0,0.00021927,2]
[384681793,1757509836827,-1086.54967329,0.00021951,2]
[384681794,1757509836836,-500.0,0.00021951,2]
[384681795,1757509836846,-201.26884193,0.00021973,2]
[384681796,1757509836856,-500.0,0.00021973,2]
[384681797,1757509836865,-518.44405499,0.00021973,2]
[384681798,1757509836875,-500.0,0.00021973,2]
[384681799,1757509836884,-500.0,0.00021973,2]
[384681800,1757509836894,-299.82976288,0.00021973,2]
[384681801,1757509836903,-500.0,0.00021973,2]
[384681802,1757509836912,-500.0,0.00021973,2]
[384681803,1757509836921,-500.0,0.00021973,2]
[384681804,1757509836931,-500.0,0.00021973,2]
[384681805,1757509836940,-500.0,0.00021973,2]
[384681806,1757509836950,-500.0,0.00021973,2]
[384681807,1757509836959,-500.0,0.00021973,2]
[384681808,1757509836968,-500.0,0.00021973,2]
[384681809,1757509836978,-500.0,0.00021973,2]
[384681810,1757509836987,-500.0,0.00021973,2]
[384681811,1757509836996,-500.0,0.00021973,2]
[384681812,1757509837006,-500.0,0.00021973,2]
[384681813,1757509837015,-500.0,0.00021973,2]
[384681814,1757509837024,-500.0,0.00021973,2]
[384681815,1757509837034,-500.0,0.00021973,2]
[384681816,1757509837043,-521.01237101,0.00021973,2]
[384681817,1757509837151,-500.0,0.00021973,2]
[384681818,1757509837161,-500.0,0.00021973,2]
[384681819,1757509837170,-500.0,0.00021973,2]
[384681820,1757509837180,-500.0,0.00021973,2]
[384681821,1757509837191,-500.0,0.00021973,2]
[384681822,1757509837201,-500.0,0.00021973,2]
[384681823,1757509837211,-151.005868,0.00021973,7]
[384681824,1757509837220,-151.0,0.00021973,7]
[384681825,1757509837229,-151.0,0.00021984,3]
[384681826,1757509837238,-3074.52,0.00022,7]
[384681827,1757509837248,-84821.76,0.00022,7]
[384681828,1757509837257,-355.53810129,0.00022,2]
[384681829,1757509837267,-168.3682747,0.00022,10]
[384681830,1757509837276,-555.12233593,0.00022,7]
[384681831,1757509837285,-1161.3220833,0.00022,3]
[384681832,1757509837295,-5104.22,0.00022,7]
[384681833,1757509837304,-6525.02,0.00022,7]
[384681834,1757509837313,-154.0,0.00022,2]
[384681835,1757509837322,-151.0,0.00022,7]
[384681836,1757509837331,-151.0,0.00022,7]
[384681837,1757509837341,-179.368217,0.00022,7]
[384681838,1757509837350,-287.349545,0.00022,7]
[384681839,1757509837359,-638.856128,0.00022,7]
[384681840,1757509837368,-357.643368,0.00022,7]
[384681841,1757509837377,-638.856128,0.00022,7]
[384681842,1757509837386,-357.643368,0.00022,7]
[384681843,1757509837395,-638.856128,0.00022,7]
[384681844,1757509837404,-357.643368,0.00022,7]
[384681845,1757509837414,-638.856128,0.00022,7]
[384681846,1757509837424,-357.643368,0.00022,7]
[384681847,1757509837434,-151.0,0.00022,7]
[384681848,1757509837444,-151.0,0.00022,7]
[384681849,1757509837453,-151.0,0.00022,7]
[384681850,1757509837463,-151.0,0.00022,7]
[384681851,1757509837472,-151.0,0.00022,7]
[384681852,1757509837482,-151.0,0.00022,7]
[384681853,1757509837492,-151.0,0.00022,7]
[384681854,1757509837503,-229.0391,0.00022,7]
[384681855,1757509837512,-151.0,0.00022,7]
[384681856,1757509837522,-151.0,0.00022,7]
[384681857,1757509837532,-151.0,0.00022,7]
[384681858,1757509837541,-151.0,0.00022,7]
[384681859,1757509837551,-203.30414021,0.00022,7]
[384681860,1757509837561,-151.0,0.00022,7]
[384681861,1757509837570,-154.981116,0.00022,7]
[384681862,1757509837580,-151.0,0.00022,7]
[384681863,1757509837590,-151.0,0.00022,7]
[384681864,1757509837599,-151.0,0.00022,7]
[384681865,1757509837609,-615.18,0.00022,2]
[384681866,1757509837619,-151.0,0.00022,7]
[384681867,1757509837628,-151.0,0.00022,7]
[384681868,1757509837638,-11132.58296129,0.00022037,2]
[384681869,1757509837647,-1500.0,0.00022063,2]
[384681870,1757509837657,-1500.0,0.00022063,2]
[384681871,1757509837666,-1077.75035114,0.00022063,2]
[384681872,1757509837675,-1500.0,0.00022063,2]
[384681873,1757509837685,-203.1771519,0.00022063,2]
[384681874,1757509837694,-500.0,0.00022123,2]
[384681875,1757509837704,-5000.0,0.0002215,2]
[384681876,1757509837714,-154.0,0.00022192,7]
[384681877,1757509837723,-500.0,0.00022201,2]
[384681878,1757509837735,-1500.0,0.00022346,2]
[384681879,1757509837744,-500.92025239,0.00022412,2]
[384681880,1757509837753,-1500.0,0.00022412,2]
[384681881,1757509837763,-11132.58296129,0.00022464,2]
[384681882,1757509837772,-500.0,0.00022475,2]
[384681883,1757509837781,-1014.49592766,0.000225,2]
[384681884,1757509837790,-156.292349,0.000225,20]
[384681885,1757509837799,-934.31304384,0.00022521,2]
[384681886,1757509837808,-1000.0,0.00022521,2]
[384681887,1757509837818,-1000.0,0.00022521,2]
[384681888,1757509837827,-1000.0,0.00022521,2]
[384681889,1757509837836,-1000.0,0.00022521,2]
[384681890,1757509837846,-1000.0,0.00022521,2]
[384681891,1757509837855,-568.40233238,0.00022521,2]
[384681892,1757509837865,-1000.0,0.00022521,2]
[384681893,1757509837874,-1000.77391745,0.00022521,2]
[384681894,1757509837884,-1000.66439281,0.00022521,2]
[384681895,1757509837894,-500.65147977,0.00022521,2]
[384681896,1757509837903,-1000.0,0.00022521,2]
[384681897,1757509837913,-1000.0,0.00022521,2]
[384681898,1757509837922,-1000.0,0.00022521,2]
[384681899,1757509837931,-1000.0,0.00022521,2]
[384681900,1757509837941,-1000.77414759,0.00022521,2]
[384681901,1757509837950,-1000.0,0.00022521,2]
[384681902,1757509837959,-1000.0,0.00022521,2]
[384681903,1757509837969,-1000.78954074,0.00022521,2]
[384681904,1757509837978,-1000.0,0.00022521,2]
[384681905,1757509837987,-1000.72580369,0.00022521,2]
[384681906,1757509837996,-1000.0,0.00022521,2]
[384681907,1757509838005,-1000.0,0.00022521,2]
[384681908,1757509838014,-1000.59437154,0.00022521,2]
[384681909,1757509838023,-2000.0,0.00022611,2]
[384681910,1757509838032,-1500.0,0.00022611,2]
[384681911,1757509838041,-2000.0,0.00022611,2]
[384681912,1757509838049,-151.0,0.00022738,3]
[384681913,1757509838059,-500.0,0.00022749,2]
[384681914,1757509838068,-2500.0,0.00022808,2]
[384681915,1757509838077,-596.399461,0.00022838,2]
[384681916,1757509838086,-615.18,0.00022842,2]
[384681917,1757509838096,-11132.58296129,0.00022892,2]
[384681918,1757509838111,-151.0,0.00022892,7]
[384681919,1757509838121,-151.0,0.00022892,7]
[384681920,1757509838130,-151.0,0.00022892,7]
[384681921,1757509838140,-151.0,0.00022892,7]
[384681922,1757509838150,-211.4,0.00022892,7]
[384681923,1757509838159,-151.0,0.00022892,7]
[384681924,1757509838168,-172.314232,0.00022892,7]
[384681925,1757509838178,-151.0,0.00022892,7]
[384681926,1757509838188,-168.454573,0.00022892,7]
[384681927,1757509838198,-151.0,0.00022892,7]
[384681928,1757509838207,-151.0,0.00022892,7]
[384681929,1757509838216,-151.0,0.00022892,7]
[384681930,1757509838225,-151.0,0.00022892,2]
[384681931,1757509838234,-151.0,0.00022892,7]
[384681932,1757509838243,-269.999847,0.00022892,7]
[384681933,1757509838252,-269.999847,0.00022892,7]
[384681934,1757509838261,-269.999847,0.00022892,7]
[384681935,1757509838271,-269.999847,0.00022892,7]
[384681936,1757509838280,-151.0,0.00022892,7]
[384681937,1757509838289,-151.0,0.00022892,7]
[384681938,1757509838299,-151.0,0.00022892,7]
[384681939,1757509838311,-2000.0,0.00022894,2]
[384681940,1757509838323,-384.81466778,0.0002296,2]
[384681941,1757509838337,-2583.77,0.00023,2]
[384681942,1757509838349,-2006.45412611,0.00023,2]
[384681943,1757509838361,-20162.65614168,0.00023,2]
[384681944,1757509838372,-2951.37466975,0.00023,2]
[384681945,1757509838383,-233.08191698,0.00023,3]
[384681946,1757509838395,-846.88337432,0.00023,3]
[384681947,1757509838407,-217.67150996,0.00023,3]
[384681948,1757509838419,-154.0,0.00023014,7]
[384681949,1757509838431,-500.0,0.00023023,2]
[384681950,1757509838444,-903.79659271,0.00023068,2]
[384681951,1757509838457,-1500.0,0.00023068,2]
[384681952,1757509838469,-804.64214251,0.00023068,2]
[384681953,1757509838480,-1000.0,0.00023068,2]
[384681954,1757509838493,-1500.0,0.00023068,2]
[384681955,1757509838504,-1500.0,0.00023068,2]
[384681956,1757509838517,-1500.0,0.00023068,2]
[384681958,1757509838530,-1378.15729852,0.00023068,2]
[384681960,1757509838543,-1500.0,0.00023068,2]
[384681963,1757509838555,-1500.0,0.00023068,2]
[384681965,1757509838568,-1500.0,0.00023068,2]
[384681967,1757509838579,-1500.0,0.00023068,2]
[384681969,1757509838590,-1156.01919131,0.00023068,2]
[384681972,1757509838603,-1500.0,0.00023068,2]
[384681974,1757509838615,-5104.22,0.000231,7]
[384681976,1757509838628,-6525.02,0.000231,7]
[384681978,1757509838640,-2500.0,0.00023158,2]
[384681980,1757509838650,-2000.0,0.00023158,2]
[384681983,1757509838660,-156.292349,0.00023242,2]
[384681985,1757509838671,-156.292349,0.00023244,20]
[384681987,1757509838683,-1000.0,0.00023256,20]
[384681989,1757509838694,-244.0,0.00023256,20]
[384681991,1757509838706,-151.2695877,0.00023273,2]
[384681994,1757509838719,-150.0,0.00023273,2]
[384681996,1757509838730,-160.62109146,0.00023273,2]
[384681998,1757509838745,-168.0,0.00023285,2]
[384682001,1757509838758,-402.36632722,0.00023287,2]
[384682003,1757509838770,-306.88178643,0.00023287,2]
[384682005,1757509838784,-5000.0,0.00023288,10]
[384682008,1757509838795,-151.0,0.00023288,7]
[384682010,1757509838807,-151.0,0.00023288,7]
[384682012,1757509838820,-500.0,0.00023297,2]
[384682014,1757509838831,-84821.76,0.000233,7]
[384682016,1757509838848,-151.0,0.000233,7]
[384682018,1757509838859,-638.856128,0.000233,7]
[384682020,1757509838869,-357.643368,0.000233,7]
[384682023,1757509838881,-638.856128,0.000233,7]
[384682025,1757509838893,-357.643368,0.000233,7]
[384682027,1757509838905,-638.856128,0.000233,7]
[384682030,1757509838917,-357.643368,0.000233,7]
[384682032,1757509838929,-638.856128,0.000233,7]
[384682034,1757509838939,-357.643368,0.000233,7]
[384682036,1757509838948,-151.0,0.000233,7]
[384682038,1757509838960,-151.0,0.000233,7]
[384682040,1757509838970,-151.0,0.000233,7]
[384682042,1757509838981,-151.0,0.000233,7]
[384682045,1757509838993,-151.0,0.000233,7]
[384682047,1757509839004,-151.0,0.000233,7]
[384682049,1757509839015,-151.0,0.000233,7]
[384682051,1757509839025,-151.0,0.000233,7]
[384682053,1757509839035,-151.0,0.000233,7]
[384682055,1757509839045,-151.0,0.000233,7]
[384682057,1757509839056,-11132.58296129,0.00023319,2]
[384682059,1757509839066,-160.0,0.0002343,3]
[384682062,1757509839077,-4000.0,0.00023437,4]
[384682064,1757509839091,-2500.0,0.00023442,2]
[384682066,1757509839101,-168.0,0.00023456,2]
[384682068,1757509839115,-151.0,0.00023492,4]
[384682070,1757509839126,-229.72815651,0.00023571,2]
[384682072,1757509839136,-156.292349,0.000236,3]
[384682074,1757509839147,-2000.0,0.00023616,2]
[384682076,1757509839158,-2000.0,0.00023616,2]
[384682079,1757509839170,-2000.0,0.00023616,2]
[384682081,1757509839181,-1143.24831229,0.00023616,2]
[384682083,1757509839193,-2000.0,0.00023616,2]
[384682085,1757509839203,-2001.50978933,0.00023616,2]
[384682087,1757509839214,-2000.0,0.00023616,2]
[384682089,1757509839226,-2000.0,0.00023616,2]
[384682092,1757509839236,-788.3898903,0.00023616,2]
[384682094,1757509839247,-1000.0,0.00023643,5]
[384682096,1757509839259,-151.0,0.00023669,7]
[384682098,1757509839269,-151.0,0.00023669,7]
[384682100,1757509839279,-151.0,0.00023669,7]
[384682102,1757509839290,-615.18,0.00023685,2]
[384682104,1757509839301,-168.0,0.00023686,2]
[384682107,1757509839312,-3074.52,0.000237,7]
[384682109,1757509839323,-151.0,0.000237,7]
[384682111,1757509839333,-151.0,0.000237,7]
[384682113,1757509839344,-151.0,0.000237,7]
[384682115,1757509839355,-151.0,0.000237,2]
[384682118,1757509839366,-248.569316,0.000237,7]
[384682120,1757509839377,-269.999847,0.000237,7]
[384682122,1757509839387,-269.999847,0.000237,7]
[384682124,1757509839398,-269.999847,0.000237,7]
[384682126,1757509839408,-269.999847,0.000237,7]
[384682128,1757509839419,-3000.0,0.00023706,2]
[384682130,1757509839429,-11132.58296129,0.00023747,2]
[384682133,1757509839440,-151.0,0.00023747,7]
[384682135,1757509839451,-151.0,0.00023747,7]
[384682137,1757509839462,-151.0,0.00023747,7]
[384682139,1757509839473,-151.0,0.00023747,7]
[384682141,1757509839484,-151.0,0.00023747,7]
[384682143,1757509839495,-151.0,0.00023747,7]
[384682146,1757509839506,-151.0,0.00023747,7]
[384682148,1757509839517,-1000.79784,0.000238,2]
[384682150,1757509839528,-300.0,0.00023821,2]
[384682152,1757509839540,-168.0,0.00023836,2]
[384682154,1757509839551,-191.0,0.00023849,2]
[384682157,1757509839563,-2500.0,0.00023904,2]
[384682159,1757509839574,-156.292349,0.00023988,20]
[384682161,1757509839585,-3000.0,0.0002399,2]
[384682163,1757509839595,-12267.65553158,0.00024,15]
[384682165,1757509839606,-530.87637315,0.00024,7]
[384682167,1757509839617,-174.0,0.00024,3]
[384682169,1757509839627,-174.0,0.00024,3]
[384682171,1757509839638,-174.0,0.00024,3]
[384682174,1757509839649,-174.0,0.00024,3]
[384682176,1757509839660,-174.24106029,0.00024,3]
[384682193,1757509839807,-151.0,0.00024,3]
[384682195,1757509839818,-151.0,0.00024,3]
[384682197,1757509839828,-327.0,0.00024,3]
[384682199,1757509839838,-327.0,0.00024,3]
[384682201,1757509839847,-327.0,0.00024,3]
[384682203,1757509839857,-382.96448575,0.00024,3]
[384682205,1757509839867,-1304.0,0.00024,3]
[384682207,1757509839877,-1304.0,0.00024,3]
[384682209,1757509839887,-1304.0,0.00024,3]
[384682211,1757509839896,-1304.0,0.00024,3]
[384682213,1757509839905,-1304.0,0.00024,3]
[384682215,1757509839915,-1304.0,0.00024,3]
[384682217,1757509839925,-1304.0,0.00024,3]
[384682219,1757509839934,-1434.83621197,0.00024,3]
[384682221,1757509839943,-151.0,0.00024,3]
[384682223,1757509839954,-151.0,0.00024,3]
[384682225,1757509839963,-151.0,0.00024,3]
[384682227,1757509839972,-151.0,0.00024,3]
[384682229,1757509839981,-151.0,0.00024,3]
[384682231,1757509839990,-151.0,0.00024,3]
[384682233,1757509839999,-151.0,0.00024,3]
[384682234,1757509840009,-151.0,0.00024,3]
[384682236,1757509840018,-151.0,0.00024,3]
[384682238,1757509840028,-151.0,0.00024,3]
[384682240,1757509840037,-151.0,0.00024,3]
[384682243,1757509840046,-151.0,0.00024,3]
[384682246,1757509840055,-151.0,0.00024,3]
[384682249,1757509840065,-151.0,0.00024,3]
[384682252,1757509840075,-151.0,0.00024,3]
[384682255,1757509840084,-151.0,0.00024,3]
[384682257,1757509840093,-151.0,0.00024,3]
[384682259,1757509840103,-151.0,0.00024,3]
[384682262,1757509840116,-151.0,0.00024,3]
[384682265,1757509840126,-151.0,0.00024,3]
[384682267,1757509840136,-151.0,0.00024,3]
[384682269,1757509840146,-151.0,0.00024,3]
[384682271,1757509840156,-151.0,0.00024,3]
[384682273,1757509840165,-151.0,0.00024,3]
[384682275,1757509840174,-151.0,0.00024,3]
[384682278,1757509840184,-151.0,0.00024,3]
[384682280,1757509840194,-151.0,0.00024,3]
[384682282,1757509840203,-151.0,0.00024,3]
[384682285,1757509840212,-151.0,0.00024,3]
[384682289,1757509840221,-151.0,0.00024,3]
[384682290,1757509840231,-151.0,0.00024,3]
[384682293,1757509840240,-151.0,0.00024,3]
[384682295,1757509840249,-151.0,0.00024,3]
[384682297,1757509840261,-151.0,0.00024,3]
[384682299,1757509840271,-151.0,0.00024,3]
[384682301,1757509840280,-151.0,0.00024,3]
[384682303,1757509840289,-151.0,0.00024,3]
[384682305,1757509840299,-151.0,0.00024,3]
[384682307,1757509840308,-151.0,0.00024,3]
[384682309,1757509840317,-151.0,0.00024,3]
[384682311,1757509840327,-151.0,0.00024,3]
[384682313,1757509840336,-151.0,0.00024,3]
[384682315,1757509840345,-151.0,0.00024,3]